[Event "*** Titled Tuesday Blitz"]
[Site "Chess.com"]
[Date "2020.12.01"]
[Round "7"]
[White "ural58"]
[Black "Ranindu2003"]
[Result "0-1"]
[WhiteElo "2438"]
[BlackElo "2595"]
[TimeControl "180+1"]
[EndTime "11:16:09 PST"]
[Termination "Ranindu2003 won on time"]

1. e4 {[%clk 0:03:00.9]} 1... g6 {[%clk 0:02:58.7]} 2. d4 {[%clk 0:03:00.2]}
2... Bg7 {[%clk 0:02:59.4]} 3. Nc3 {[%clk 0:03:00.3]} 3... d6 {[%clk 0:02:59.9]}
4. h4 {[%clk 0:02:58.8]} 4... h6 {[%clk 0:02:52.8]} 5. f4 {[%clk 0:02:58.2]}
5... h5 {[%clk 0:02:50]} 6. Be3 {[%clk 0:02:54.9]} 6... a6 {[%clk 0:02:49.8]} 7.
Qd2 {[%clk 0:02:52.9]} 7... b5 {[%clk 0:02:46.8]} 8. a4 {[%clk 0:02:52.5]} 8...
b4 {[%clk 0:02:46.5]} 9. Nce2 {[%clk 0:02:52.5]} 9... a5 {[%clk 0:02:46.9]} 10.
Ng3 {[%clk 0:02:47]} 10... Nf6 {[%clk 0:02:45.4]} 11. Bc4 {[%clk 0:02:41.4]}
11... Bb7 {[%clk 0:02:41.8]} 12. d5 {[%clk 0:02:36.2]} 12... Nbd7 {[%clk
0:02:39.3]} 13. Bd4 {[%clk 0:02:33]} 13... O-O {[%clk 0:02:36.4]} 14. Nf3 {[%clk
0:02:32.5]} 14... c6 {[%clk 0:02:33.3]} 15. dxc6 {[%clk 0:02:09.2]} 15... Bxc6
{[%clk 0:02:34.2]} 16. Ng5 {[%clk 0:02:09.3]} 16... e5 {[%clk 0:02:27.7]} 17.
Be3 {[%clk 0:02:01.3]} 17... Ng4 {[%clk 0:02:26.6]} 18. O-O {[%clk 0:01:58]}
18... exf4 {[%clk 0:02:10.4]} 19. Rxf4 {[%clk 0:01:50.8]} 19... Nde5 {[%clk
0:02:07.5]} 20. Bb3 {[%clk 0:01:49]} 20... Bh6 {[%clk 0:01:57.3]} 21. Raf1
{[%clk 0:01:34.1]} 21... Kh8 {[%clk 0:01:19.9]} 22. Bd4 {[%clk 0:01:23.4]} 22...
Bxg5 {[%clk 0:01:15.9]} 23. hxg5 {[%clk 0:01:22.5]} 23... Qxg5 {[%clk
0:01:15.7]} 24. Qd1 {[%clk 0:00:11.9]} 24... Qh4 {[%clk 0:01:08.2]} 25. Rxg4
{[%clk 0:00:12.1]} 25... hxg4 {[%clk 0:01:07.7]} 26. Qe1 {[%clk 0:00:09]} 26...
Kg8 {[%clk 0:01:02.2]} 27. Qf2 {[%clk 0:00:08.8]} 27... Qe7 {[%clk 0:00:54.2]}
28. Qf4 {[%clk 0:00:08.7]} 28... Kg7 {[%clk 0:00:50.3]} 29. Kf2 {[%clk
0:00:07.7]} 29... Qf6 {[%clk 0:00:40.5]} 30. Ke3 {[%clk 0:00:06.8]} 30... Qxf4+
{[%clk 0:00:40.5]} 31. Rxf4 {[%clk 0:00:06]} 31... Rae8 {[%clk 0:00:40.5]} 32.
Rxg4 {[%clk 0:00:06]} 32... Bd7 {[%clk 0:00:17.2]} 33. Rf4 {[%clk 0:00:05.8]}
33... f6 {[%clk 0:00:15.4]} 34. Rf1 {[%clk 0:00:03]} 34... Rh8 {[%clk
0:00:15.1]} 35. Rg1 {[%clk 0:00:02.4]} 35... Rh2 {[%clk 0:00:14.9]} 0-1

[Event "*** Titled Tuesday Blitz"]
[Site "Chess.com"]
[Date "2020.12.01"]
[Round "7"]
[White "maxz1996"]
[Black "underdogchss"]
[Result "0-1"]
[WhiteElo "2215"]
[BlackElo "2358"]
[TimeControl "180+1"]
[EndTime "11:16:09 PST"]
[Termination "underdogchss won on time"]

1. e4 {[%clk 0:03:00.9]} 1... c5 {[%clk 0:02:59.5]} 2. Nc3 {[%clk 0:02:57.1]}
2... a6 {[%clk 0:02:55.5]} 3. Nf3 {[%clk 0:02:56.6]} 3... e6 {[%clk 0:02:49.4]}
4. d4 {[%clk 0:02:56.6]} 4... cxd4 {[%clk 0:02:50.3]} 5. Nxd4 {[%clk 0:02:57.4]}
5... Qc7 {[%clk 0:02:50.5]} 6. a3 {[%clk 0:02:57.6]} 6... b5 {[%clk 0:02:49]} 7.
Be3 {[%clk 0:02:55.7]} 7... Bb7 {[%clk 0:02:49.4]} 8. Bd3 {[%clk 0:02:47]} 8...
Nf6 {[%clk 0:02:30.9]} 9. f4 {[%clk 0:02:44.7]} 9... b4 {[%clk 0:02:29.7]} 10.
e5 {[%clk 0:01:46.2]} 10... bxc3 {[%clk 0:02:25.3]} 11. exf6 {[%clk 0:01:46.1]}
11... cxb2 {[%clk 0:02:25.8]} 12. Rb1 {[%clk 0:01:45.9]} 12... gxf6 {[%clk
0:02:22.9]} 13. O-O {[%clk 0:01:33.7]} 13... Bxa3 {[%clk 0:02:03]} 14. Qh5
{[%clk 0:01:17.7]} 14... Nc6 {[%clk 0:01:52.2]} 15. Nxc6 {[%clk 0:00:54.2]}
15... Qxc6 {[%clk 0:01:51.6]} 16. Rf2 {[%clk 0:00:54.3]} 16... Rg8 {[%clk
0:01:51]} 17. Bf1 {[%clk 0:00:52.4]} 17... Qe4 {[%clk 0:01:42.1]} 18. Bb6 {[%clk
0:00:47.5]} 18... Rc8 {[%clk 0:01:20.8]} 19. Qd1 {[%clk 0:00:25.2]} 19... Rc6
{[%clk 0:01:03.2]} 20. Ba7 {[%clk 0:00:22]} 20... Rd6 {[%clk 0:01:01.9]} 21. Qh5
{[%clk 0:00:16.7]} 21... Rd5 {[%clk 0:01:00]} 22. Qh6 {[%clk 0:00:15.1]} 22...
Ke7 {[%clk 0:00:30.3]} 23. Qh3 {[%clk 0:00:14.1]} 23... Rf5 {[%clk 0:00:29.2]}
24. Qxa3+ {[%clk 0:00:13.5]} 24... d6 {[%clk 0:00:24.6]} 25. Rxb2 {[%clk
0:00:11.2]} 25... Rb5 {[%clk 0:00:23.9]} 26. Rxb5 {[%clk 0:00:06.7]} 26... axb5
{[%clk 0:00:23.4]} 27. Bb6 {[%clk 0:00:04.8]} 27... f5 {[%clk 0:00:21.1]} 28.
Ba5 {[%clk 0:00:04.9]} 28... Ra8 {[%clk 0:00:19.7]} 29. Qc3 {[%clk 0:00:05]}
29... Bc6 {[%clk 0:00:18.3]} 30. Bb4 {[%clk 0:00:04.5]} 30... Kd7 {[%clk
0:00:17.9]} 31. Qe1 {[%clk 0:00:02.8]} 31... Qd5 {[%clk 0:00:17]} 32. Rd2 {[%clk
0:00:02]} 32... Qe4 {[%clk 0:00:15.5]} 33. c3 {[%clk 0:00:02.4]} 33... d5 {[%clk
0:00:14.9]} 34. Rf2 {[%clk 0:00:02.9]} 34... Qxe1 {[%clk 0:00:14.5]} 35. h3
{[%clk 0:00:02.9]} 35... Ra1 {[%clk 0:00:13.7]} 36. Kh2 {[%clk 0:00:02.8]} 36...
Qxf2 {[%clk 0:00:13.7]} 37. Bc5 {[%clk 0:00:02]} 37... d4 {[%clk 0:00:13.8]} 38.
Bxd4 {[%clk 0:00:01.6]} 38... Qxf1 {[%clk 0:00:14.3]} 0-1

[Event "*** Titled Tuesday Blitz"]
[Site "Chess.com"]
[Date "2020.12.01"]
[Round "7"]
[White "szabadaba"]
[Black "sergeikim"]
[Result "1-0"]
[WhiteElo "2671"]
[BlackElo "2522"]
[TimeControl "180+1"]
[EndTime "11:16:12 PST"]
[Termination "szabadaba won by resignation"]

1. e4 {[%clk 0:03:00.9]} 1... e5 {[%clk 0:02:59.7]} 2. Nf3 {[%clk 0:03:00.4]}
2... Nc6 {[%clk 0:02:59.6]} 3. Bb5 {[%clk 0:03:00.9]} 3... a6 {[%clk 0:02:59.7]}
4. Ba4 {[%clk 0:03:00.8]} 4... Nf6 {[%clk 0:02:59.7]} 5. O-O {[%clk 0:03:00.6]}
5... b5 {[%clk 0:02:59.4]} 6. Bb3 {[%clk 0:03:00.2]} 6... Bc5 {[%clk 0:02:59.9]}
7. d3 {[%clk 0:03:00.3]} 7... d6 {[%clk 0:03:00.1]} 8. c3 {[%clk 0:02:59.4]}
8... h6 {[%clk 0:02:58.1]} 9. a4 {[%clk 0:02:59.2]} 9... Bb7 {[%clk 0:02:50.8]}
10. axb5 {[%clk 0:02:58.6]} 10... axb5 {[%clk 0:02:51.4]} 11. Rxa8 {[%clk
0:02:58.4]} 11... Qxa8 {[%clk 0:02:50.7]} 12. d4 {[%clk 0:02:56.6]} 12... Bb6
{[%clk 0:02:47.7]} 13. d5 {[%clk 0:02:49.5]} 13... Ne7 {[%clk 0:02:46.5]} 14.
Re1 {[%clk 0:02:45.7]} 14... Ng6 {[%clk 0:02:41.5]} 15. Nbd2 {[%clk 0:02:44.6]}
15... O-O {[%clk 0:02:40.2]} 16. Nf1 {[%clk 0:02:44.4]} 16... c6 {[%clk
0:02:34.6]} 17. dxc6 {[%clk 0:02:44]} 17... Bxc6 {[%clk 0:02:34.6]} 18. Ng3
{[%clk 0:02:31.5]} 18... Nxe4 {[%clk 0:02:29.2]} 19. Nxe4 {[%clk 0:02:30.7]}
19... Bxe4 {[%clk 0:02:29.7]} 20. Qxd6 {[%clk 0:02:29.9]} 20... Bxf3 {[%clk
0:01:55.5]} 21. Qxg6 {[%clk 0:02:24.2]} 21... Qc6 {[%clk 0:01:40.6]} 22. Qxc6
{[%clk 0:01:54.4]} 22... Bxc6 {[%clk 0:01:39.2]} 23. Rxe5 {[%clk 0:01:53.8]}
23... Ra8 {[%clk 0:01:34.1]} 24. Re1 {[%clk 0:01:36.6]} 24... Kf8 {[%clk
0:01:24.7]} 25. h3 {[%clk 0:01:33.9]} 25... Bc5 {[%clk 0:01:22]} 26. Be3 {[%clk
0:01:30.4]} 26... Be7 {[%clk 0:01:18.9]} 27. Bd4 {[%clk 0:01:27.5]} 27... f6
{[%clk 0:01:15.9]} 28. Re6 {[%clk 0:01:23.2]} 28... Be8 {[%clk 0:01:13]} 29. Rb6
{[%clk 0:01:17.7]} 29... Ra1+ {[%clk 0:01:00.4]} 30. Kh2 {[%clk 0:01:16.2]}
30... Rb1 {[%clk 0:00:53]} 31. c4 {[%clk 0:01:15.7]} 31... Rd1 {[%clk
0:00:43.5]} 32. Be3 {[%clk 0:01:05.8]} 32... Rd3 {[%clk 0:00:37.6]} 33. Bc2
{[%clk 0:01:03.7]} 33... Rd6 {[%clk 0:00:34.5]} 34. c5 {[%clk 0:00:37.4]} 34...
Rxb6 {[%clk 0:00:33.9]} 35. cxb6 {[%clk 0:00:38.3]} 35... Bd6+ {[%clk
0:00:34.1]} 36. Kg1 {[%clk 0:00:36.7]} 36... Bc6 {[%clk 0:00:35]} 37. f3 {[%clk
0:00:35.5]} 37... Ke7 {[%clk 0:00:33.3]} 38. Bf5 {[%clk 0:00:32.9]} 38... Bg3
{[%clk 0:00:20.9]} 39. Bc5+ {[%clk 0:00:28]} 39... Bd6 {[%clk 0:00:20.5]} 40. b4
{[%clk 0:00:26.8]} 40... Bb7 {[%clk 0:00:18.3]} 41. Kf2 {[%clk 0:00:25.9]} 41...
g5 {[%clk 0:00:12.7]} 42. Ke3 {[%clk 0:00:24.7]} 42... h5 {[%clk 0:00:12.5]} 43.
Kd4 {[%clk 0:00:24.1]} 43... h4 {[%clk 0:00:10.6]} 44. Be4 {[%clk 0:00:23]} 1-0

[Event "*** Titled Tuesday Blitz"]
[Site "Chess.com"]
[Date "2020.12.01"]
[Round "7"]
[White "ENajer77"]
[Black "PSvidler"]
[Result "0-1"]
[WhiteElo "2686"]
[BlackElo "2867"]
[TimeControl "180+1"]
[EndTime "11:16:13 PST"]
[Termination "PSvidler won on time"]

1. e4 {[%clk 0:03:00.9]} 1... c5 {[%clk 0:02:54.6]} 2. Nf3 {[%clk 0:02:59.9]}
2... d6 {[%clk 0:02:48.2]} 3. d4 {[%clk 0:02:59.8]} 3... cxd4 {[%clk 0:02:47]}
4. Nxd4 {[%clk 0:03:00.3]} 4... Nf6 {[%clk 0:02:47.5]} 5. Nc3 {[%clk 0:03:00.6]}
5... a6 {[%clk 0:02:47.5]} 6. Bg5 {[%clk 0:03:00.5]} 6... Nbd7 {[%clk
0:02:45.3]} 7. f4 {[%clk 0:02:56.8]} 7... h6 {[%clk 0:02:39.4]} 8. Bh4 {[%clk
0:02:41]} 8... g6 {[%clk 0:02:39.1]} 9. f5 {[%clk 0:02:32.8]} 9... g5 {[%clk
0:02:27.4]} 10. Bf2 {[%clk 0:02:30.2]} 10... b5 {[%clk 0:02:10.2]} 11. h4 {[%clk
0:02:13.7]} 11... g4 {[%clk 0:02:02.3]} 12. Bd3 {[%clk 0:01:12.8]} 12... Bb7
{[%clk 0:02:01.3]} 13. Qe2 {[%clk 0:01:12]} 13... Rc8 {[%clk 0:02:00.6]} 14. Nd5
{[%clk 0:01:10.3]} 14... Bg7 {[%clk 0:01:52]} 15. O-O-O {[%clk 0:01:07.3]} 15...
Ne5 {[%clk 0:01:48.1]} 16. Nxf6+ {[%clk 0:00:59.7]} 16... Bxf6 {[%clk
0:01:47.9]} 17. Kb1 {[%clk 0:00:59.8]} 17... Rg8 {[%clk 0:01:45.6]} 18. Be3
{[%clk 0:00:50.4]} 18... h5 {[%clk 0:01:42.4]} 19. Bg5 {[%clk 0:00:41.1]} 19...
Qb6 {[%clk 0:01:40.7]} 20. Bxf6 {[%clk 0:00:39.4]} 20... exf6 {[%clk 0:01:29.9]}
21. c3 {[%clk 0:00:36.9]} 21... Ke7 {[%clk 0:01:28.2]} 22. Qd2 {[%clk
0:00:29.4]} 22... b4 {[%clk 0:01:25.8]} 23. Ne2 {[%clk 0:00:22.7]} 23... bxc3
{[%clk 0:01:22.3]} 24. Nxc3 {[%clk 0:00:23.2]} 24... Rc7 {[%clk 0:01:19.4]} 25.
Be2 {[%clk 0:00:19.4]} 25... Rgc8 {[%clk 0:01:16.8]} 26. Qd4 {[%clk 0:00:18.4]}
26... Qxd4 {[%clk 0:01:06.8]} 27. Rxd4 {[%clk 0:00:12.8]} 27... a5 {[%clk
0:01:00.3]} 28. Rhd1 {[%clk 0:00:12.6]} 28... Rxc3 {[%clk 0:00:58.5]} 29. bxc3
{[%clk 0:00:12.2]} 29... Rxc3 {[%clk 0:00:59.4]} 30. Ka1 {[%clk 0:00:08.1]}
30... Re3 {[%clk 0:00:56.7]} 31. Bd3 {[%clk 0:00:05.8]} 31... Nxd3 {[%clk
0:00:51.3]} 32. R1xd3 {[%clk 0:00:04.4]} 32... Rxd3 {[%clk 0:00:51.1]} 33. Rxd3
{[%clk 0:00:04.3]} 33... Bxe4 {[%clk 0:00:52]} 34. Re3 {[%clk 0:00:02.5]} 34...
d5 {[%clk 0:00:52.2]} 35. g3 {[%clk 0:00:02]} 35... Kd6 {[%clk 0:00:52.4]} 36.
Ra3 {[%clk 0:00:01.9]} 36... Ke5 {[%clk 0:00:50.2]} 37. Rxa5 {[%clk 0:00:01.8]}
37... Kd4 {[%clk 0:00:50.4]} 38. Ra7 {[%clk 0:00:01.8]} 38... Ke3 {[%clk
0:00:48.7]} 39. Rxf7 {[%clk 0:00:01.2]} 39... Kf3 {[%clk 0:00:48.7]} 40. Rxf6
{[%clk 0:00:01.4]} 40... Kxg3 {[%clk 0:00:48.8]} 41. a4 {[%clk 0:00:01.5]} 41...
Kf4 {[%clk 0:00:46.7]} 42. a5 {[%clk 0:00:01.7]} 42... g3 {[%clk 0:00:45.2]} 43.
a6 {[%clk 0:00:01.8]} 43... d4 {[%clk 0:00:43.3]} 44. a7 {[%clk 0:00:01.6]}
44... g2 {[%clk 0:00:42.3]} 45. Rg6 {[%clk 0:00:01.8]} 45... Kxf5 {[%clk
0:00:41.5]} 46. Rg5+ {[%clk 0:00:02.1]} 46... Kf4 {[%clk 0:00:41.7]} 47. Kb2
{[%clk 0:00:02.2]} 47... Kf3 {[%clk 0:00:39.7]} 48. Kc1 {[%clk 0:00:02.1]} 48...
Kf2 {[%clk 0:00:39.9]} 49. Kd2 {[%clk 0:00:01.9]} 49... g1=Q {[%clk 0:00:40]}
50. Rxg1 {[%clk 0:00:02.2]} 50... Kxg1 {[%clk 0:00:40.3]} 0-1

[Event "*** Titled Tuesday Blitz"]
[Site "Chess.com"]
[Date "2020.12.01"]
[Round "7"]
[White "sopo-tereladze"]
[Black "googlegoom"]
[Result "1-0"]
[WhiteElo "2317"]
[BlackElo "2449"]
[TimeControl "180+1"]
[EndTime "11:16:14 PST"]
[Termination "sopo-tereladze won by resignation"]

1. d4 {[%clk 0:03:00.9]} 1... d5 {[%clk 0:02:59.1]} 2. Nf3 {[%clk 0:03:00.7]}
2... Nf6 {[%clk 0:02:58.1]} 3. Bf4 {[%clk 0:03:01]} 3... e6 {[%clk 0:02:58.3]}
4. e3 {[%clk 0:03:01.5]} 4... Bd6 {[%clk 0:02:58.1]} 5. Ne5 {[%clk 0:02:56.2]}
5... c5 {[%clk 0:02:57.1]} 6. c3 {[%clk 0:02:53.2]} 6... Qc7 {[%clk 0:02:56.6]}
7. Nd2 {[%clk 0:02:51.4]} 7... O-O {[%clk 0:02:38.2]} 8. Bd3 {[%clk 0:02:47.6]}
8... Nc6 {[%clk 0:02:33.6]} 9. Ndf3 {[%clk 0:02:43.1]} 9... Nd7 {[%clk
0:02:26.2]} 10. Bxh7+ {[%clk 0:01:55.7]} 10... Kxh7 {[%clk 0:02:21.1]} 11. Ng5+
{[%clk 0:01:55.1]} 11... Kg8 {[%clk 0:02:09.6]} 12. Nxd7 {[%clk 0:01:45.5]}
12... Bxf4 {[%clk 0:02:07]} 13. Nxf8 {[%clk 0:01:45.1]} 13... Bxg5 {[%clk
0:02:01]} 14. Qh5 {[%clk 0:01:38.4]} 14... Bh6 {[%clk 0:01:24.2]} 15. g4 {[%clk
0:01:38.2]} 15... Kxf8 {[%clk 0:00:55.3]} 16. g5 {[%clk 0:01:35.1]} 16... Bxg5
{[%clk 0:00:55.6]} 17. Qxg5 {[%clk 0:01:34.1]} 17... cxd4 {[%clk 0:00:55.6]} 18.
exd4 {[%clk 0:01:30.3]} 18... Qe7 {[%clk 0:00:54.7]} 19. Qh5 {[%clk 0:01:22.8]}
19... Qf6 {[%clk 0:00:53.9]} 20. O-O-O {[%clk 0:01:21.9]} 20... Ke7 {[%clk
0:00:52.9]} 21. Rhe1 {[%clk 0:01:16.8]} 21... Kd6 {[%clk 0:00:26.1]} 22. f3
{[%clk 0:01:12.7]} 22... Bd7 {[%clk 0:00:25.8]} 23. Re3 {[%clk 0:01:00.1]} 23...
Qf4 {[%clk 0:00:23.8]} 24. Re1 {[%clk 0:00:56.3]} 24... g6 {[%clk 0:00:23.9]}
25. Qh7 {[%clk 0:00:48.3]} 25... Na5 {[%clk 0:00:23.5]} 26. Kb1 {[%clk
0:00:45.7]} 26... Nc4 {[%clk 0:00:23.4]} 27. R3e2 {[%clk 0:00:44.9]} 27... Rc8
{[%clk 0:00:22.2]} 28. h4 {[%clk 0:00:34.7]} 28... Nd2+ {[%clk 0:00:20.3]} 29.
Ka1 {[%clk 0:00:32.2]} 29... Nxf3 {[%clk 0:00:20.5]} 30. Rf1 {[%clk 0:00:31.8]}
30... Qg4 {[%clk 0:00:09.7]} 31. Qxf7 {[%clk 0:00:28.4]} 31... Nxh4 {[%clk
0:00:09.8]} 32. Ref2 {[%clk 0:00:25.8]} 32... Nf5 {[%clk 0:00:09.8]} 33. Qf6
{[%clk 0:00:25.1]} 33... Rg8 {[%clk 0:00:06.5]} 34. Qe5+ {[%clk 0:00:24.8]}
34... Ke7 {[%clk 0:00:06.7]} 35. Re1 {[%clk 0:00:23]} 35... Kd8 {[%clk
0:00:03.8]} 36. Qb8+ {[%clk 0:00:21.5]} 36... Bc8 {[%clk 0:00:04.4]} 37. a4
{[%clk 0:00:19]} 37... Qg5 {[%clk 0:00:04.7]} 38. Rfe2 {[%clk 0:00:17.9]} 38...
Qe7 {[%clk 0:00:05.3]} 39. Rxe6 {[%clk 0:00:16.6]} 39... Qxe6 {[%clk 0:00:05.8]}
40. Rxe6 {[%clk 0:00:16.4]} 40... Ne7 {[%clk 0:00:06.1]} 41. Qd6+ {[%clk
0:00:14.5]} 1-0

[Event "*** Titled Tuesday Blitz"]
[Site "Chess.com"]
[Date "2020.12.01"]
[Round "7"]
[White "Eloist"]
[Black "ehrenfeld"]
[Result "1-0"]
[WhiteElo "2312"]
[BlackElo "2476"]
[TimeControl "180+1"]
[EndTime "11:16:14 PST"]
[Termination "Eloist won on time"]

1. e4 {[%clk 0:03:00.9]} 1... d6 {[%clk 0:02:59.6]} 2. d4 {[%clk 0:03:00.6]}
2... g6 {[%clk 0:02:59.7]} 3. Nc3 {[%clk 0:03:00.5]} 3... Bg7 {[%clk 0:03:00.1]}
4. Nf3 {[%clk 0:03:00.6]} 4... Nf6 {[%clk 0:02:59.1]} 5. Be2 {[%clk 0:03:00.6]}
5... O-O {[%clk 0:02:59.1]} 6. O-O {[%clk 0:03:00.5]} 6... e6 {[%clk 0:02:59.1]}
7. Re1 {[%clk 0:02:58.4]} 7... Nc6 {[%clk 0:02:58.9]} 8. Be3 {[%clk 0:02:46.9]}
8... b6 {[%clk 0:02:58]} 9. Qd2 {[%clk 0:02:45.8]} 9... Bb7 {[%clk 0:02:58]} 10.
Rad1 {[%clk 0:02:42.8]} 10... Ne7 {[%clk 0:02:57.1]} 11. Bd3 {[%clk 0:02:34.2]}
11... a6 {[%clk 0:02:45.7]} 12. Bh6 {[%clk 0:02:28.2]} 12... c5 {[%clk
0:02:34.3]} 13. Bxg7 {[%clk 0:02:24.3]} 13... Kxg7 {[%clk 0:02:33.9]} 14. e5
{[%clk 0:02:06.7]} 14... Ne8 {[%clk 0:01:54.9]} 15. Be4 {[%clk 0:01:54.8]} 15...
Bxe4 {[%clk 0:01:45.5]} 16. Nxe4 {[%clk 0:01:51.1]} 16... d5 {[%clk 0:01:40.2]}
17. dxc5 {[%clk 0:01:34.6]} 17... Nc6 {[%clk 0:01:20.7]} 18. Qf4 {[%clk
0:01:10.2]} 18... Qe7 {[%clk 0:01:09.3]} 19. Nd6 {[%clk 0:00:48.8]} 19... bxc5
{[%clk 0:01:07.6]} 20. c4 {[%clk 0:00:43]} 20... d4 {[%clk 0:01:02.5]} 21. Ne4
{[%clk 0:00:24.7]} 21... f5 {[%clk 0:00:52.6]} 22. exf6+ {[%clk 0:00:24]} 22...
Nxf6 {[%clk 0:00:52.7]} 23. Nxf6 {[%clk 0:00:22.8]} 23... Rxf6 {[%clk
0:00:52.3]} 24. Qe4 {[%clk 0:00:19.2]} 24... Qc7 {[%clk 0:00:36.4]} 25. Ng5
{[%clk 0:00:18.4]} 25... Re8 {[%clk 0:00:31.8]} 26. Qh4 {[%clk 0:00:18.3]} 26...
h6 {[%clk 0:00:28.6]} 27. Ne4 {[%clk 0:00:18.3]} 27... Rf4 {[%clk 0:00:27.2]}
28. Qg3 {[%clk 0:00:18.4]} 28... Ref8 {[%clk 0:00:18.9]} 29. Nxc5 {[%clk
0:00:18.3]} 29... Kh7 {[%clk 0:00:08.9]} 30. Nxe6 {[%clk 0:00:17.5]} 30... Qd6
{[%clk 0:00:05.9]} 31. Nxf4 {[%clk 0:00:16.1]} 31... Rxf4 {[%clk 0:00:05.3]} 32.
Re4 {[%clk 0:00:15.9]} 32... g5 {[%clk 0:00:03.6]} 33. Rxf4 {[%clk 0:00:12.9]}
33... gxf4 {[%clk 0:00:03.7]} 34. Qd3+ {[%clk 0:00:12.6]} 34... Kg7 {[%clk
0:00:04]} 35. Qe4 {[%clk 0:00:11.9]} 35... a5 {[%clk 0:00:03.1]} 36. Re1 {[%clk
0:00:11.7]} 36... d3 {[%clk 0:00:02.9]} 37. Rd1 {[%clk 0:00:11.3]} 37... d2
{[%clk 0:00:02.7]} 38. Qe2 {[%clk 0:00:11.2]} 38... Nd4 {[%clk 0:00:01.8]} 39.
Qxd2 {[%clk 0:00:11.1]} 1-0

[Event "*** Titled Tuesday Blitz"]
[Site "Chess.com"]
[Date "2020.12.01"]
[Round "7"]
[White "2nd_life"]
[Black "Faqade"]
[Result "1-0"]
[WhiteElo "2563"]
[BlackElo "2682"]
[TimeControl "180+1"]
[EndTime "11:16:16 PST"]
[Termination "2nd_life won by resignation"]

1. e4 {[%clk 0:03:00.9]} 1... c5 {[%clk 0:02:57.2]} 2. Nf3 {[%clk 0:03:00.4]}
2... e6 {[%clk 0:02:57.2]} 3. c3 {[%clk 0:02:59.4]} 3... Nf6 {[%clk 0:02:56.6]}
4. e5 {[%clk 0:02:59.6]} 4... Nd5 {[%clk 0:02:57.2]} 5. d4 {[%clk 0:03:00.5]}
5... cxd4 {[%clk 0:02:58]} 6. cxd4 {[%clk 0:03:01.4]} 6... d6 {[%clk 0:02:58.6]}
7. Bc4 {[%clk 0:03:01]} 7... Be7 {[%clk 0:02:58.2]} 8. O-O {[%clk 0:03:00.6]}
8... O-O {[%clk 0:02:58.3]} 9. Qe2 {[%clk 0:03:00.4]} 9... b6 {[%clk 0:02:58.4]}
10. Re1 {[%clk 0:02:50.4]} 10... Bb7 {[%clk 0:02:53.8]} 11. Bxd5 {[%clk
0:02:46.8]} 11... Bxd5 {[%clk 0:02:49.8]} 12. Nc3 {[%clk 0:02:46.9]} 12... dxe5
{[%clk 0:02:49.8]} 13. Nxd5 {[%clk 0:02:44.3]} 13... Qxd5 {[%clk 0:02:48.6]} 14.
dxe5 {[%clk 0:02:43.1]} 14... Nd7 {[%clk 0:02:41.6]} 15. Bg5 {[%clk 0:02:28.2]}
15... Bxg5 {[%clk 0:02:15.4]} 16. Red1 {[%clk 0:02:23.3]} 16... h6 {[%clk
0:02:16.3]} 17. Rxd5 {[%clk 0:02:21.8]} 17... exd5 {[%clk 0:02:17.2]} 18. e6
{[%clk 0:02:16.4]} 18... fxe6 {[%clk 0:02:17.5]} 19. Qxe6+ {[%clk 0:02:15.7]}
19... Rf7 {[%clk 0:02:17.6]} 20. Qxd5 {[%clk 0:02:10.1]} 20... Rf8 {[%clk
0:02:16.1]} 21. Re1 {[%clk 0:01:57.1]} 21... Bf6 {[%clk 0:02:09.7]} 22. h4
{[%clk 0:01:52.6]} 22... Kh8 {[%clk 0:02:02.8]} 23. b3 {[%clk 0:01:49.4]} 23...
Bc3 {[%clk 0:01:56.8]} 24. Re8 {[%clk 0:01:40.1]} 24... Rxe8 {[%clk 0:01:49.2]}
25. Qxf7 {[%clk 0:01:38.5]} 25... Rd8 {[%clk 0:01:49.7]} 26. h5 {[%clk
0:01:32.7]} 26... Bf6 {[%clk 0:01:48.5]} 27. g4 {[%clk 0:01:24]} 27... a5 {[%clk
0:01:39.8]} 28. Kg2 {[%clk 0:01:22.8]} 28... Ne5 {[%clk 0:01:36]} 29. Nxe5
{[%clk 0:01:20.1]} 29... Bxe5 {[%clk 0:01:36.9]} 30. Qe6 {[%clk 0:01:18.7]}
30... Bd4 {[%clk 0:01:33.9]} 31. f4 {[%clk 0:01:16.7]} 31... b5 {[%clk
0:01:29.6]} 32. g5 {[%clk 0:01:14.1]} 32... hxg5 {[%clk 0:01:28.4]} 33. fxg5
{[%clk 0:01:13.9]} 33... a4 {[%clk 0:01:28.1]} 34. h6 {[%clk 0:01:04]} 34... a3
{[%clk 0:01:24.9]} 35. Kf3 {[%clk 0:00:59.2]} 35... b4 {[%clk 0:01:22.4]} 36.
Kg4 {[%clk 0:00:56.9]} 36... Bc3 {[%clk 0:01:17.9]} 37. Kh5 {[%clk 0:00:55]}
37... Rg8 {[%clk 0:01:17.5]} 38. hxg7+ {[%clk 0:00:40.5]} 38... Bxg7 {[%clk
0:01:14.6]} 39. Qe7 {[%clk 0:00:34.6]} 39... Bc3 {[%clk 0:01:13.2]} 40. g6
{[%clk 0:00:32.3]} 40... Bg7 {[%clk 0:01:04.1]} 41. Qxb4 {[%clk 0:00:25.3]}
41... Ra8 {[%clk 0:01:04.4]} 42. Kg5 {[%clk 0:00:18.3]} 42... Kg8 {[%clk
0:00:48.7]} 43. Qc4+ {[%clk 0:00:18.1]} 43... Kh8 {[%clk 0:00:47.9]} 44. b4
{[%clk 0:00:18]} 44... Re8 {[%clk 0:00:45.2]} 45. b5 {[%clk 0:00:09.1]} 45...
Re5+ {[%clk 0:00:44.7]} 46. Kf4 {[%clk 0:00:09.4]} 46... Re8 {[%clk 0:00:43.6]}
47. b6 {[%clk 0:00:08.9]} 47... Rf8+ {[%clk 0:00:37.6]} 48. Kg5 {[%clk
0:00:08.5]} 48... Bf6+ {[%clk 0:00:37.6]} 49. Kh5 {[%clk 0:00:08.4]} 49... Rd8
{[%clk 0:00:34.7]} 50. b7 {[%clk 0:00:07.1]} 1-0